fUST/lending_fUST_20250814
["ID","MTS","AMOUNT","RATE_DAILY","PERIOD"]
[379063823,1755112244483,-460.0,0.00019178,2]
[379063825,1755112244492,-461.84,0.00019178,2]
[379063827,1755112244501,-460.0,0.00019178,2]
[379063829,1755112244512,-830.77,0.00019178,2]
[379063832,1755112244522,-753.81,0.00019178,2]
[379063834,1755112244531,-753.21,0.00019178,2]
[379063836,1755112244541,-460.0,0.00019178,2]
[379063838,1755112244551,-460.0,0.00019178,2]
[379063840,1755112244561,-460.0,0.00019178,2]
[379063842,1755112244571,-460.0,0.00019178,2]
[379063844,1755112244581,-2647.34,0.00019178,2]
[379063846,1755112244590,-460.0,0.00019178,2]
[379063848,1755112244599,-460.0,0.00019178,2]
[379063850,1755112244609,-460.0,0.00019178,2]
[379063852,1755112244618,-460.0,0.00019178,2]
[379063854,1755112244627,-516.46984362,0.00019178,2]
[379063856,1755112244636,-280.53598047,0.00019178,2]
[379063858,1755112244646,-460.0,0.00019178,2]
[379063860,1755112244655,-460.0,0.00019178,2]
[379063862,1755112244667,-460.0,0.00019178,2]
[379063864,1755112244676,-1294.39,0.00019178,2]
[379063866,1755112244685,-460.0,0.00019178,2]
[379063868,1755112244695,-460.0,0.00019178,2]
[379063870,1755112244705,-460.0,0.00019178,2]
[379063872,1755112244714,-1840.17,0.00019178,2]
[379063874,1755112244724,-460.0,0.00019178,2]
[379063876,1755112244733,-1029.95,0.00019178,2]
[379063877,1755112244743,-460.0,0.00019178,2]
[379063878,1755112244753,-460.0,0.00019178,2]
[379063879,1755112244762,-715.95,0.00019178,2]
[379063880,1755112244772,-460.0,0.00019178,2]
[379063881,1755112244782,-460.0,0.00019178,2]
[379063882,1755112244791,-460.0,0.00019178,2]
[379063883,1755112244801,-460.0,0.00019178,2]
[379063884,1755112244810,-626.76,0.00019178,2]
[379063885,1755112244820,-460.0,0.00019178,2]
[379063886,1755112244829,-463.93983291,0.00019178,2]
[379063887,1755112244839,-1174.73,0.00019178,2]
[379063888,1755112244848,-460.0,0.00019178,2]
[379063889,1755112244858,-400.0,0.00019178,2]
[379063890,1755112244868,-460.0,0.00019178,2]
[379063891,1755112244877,-460.0,0.00019178,2]
[379063892,1755112244887,-507.11,0.00019178,2]
[379063893,1755112244897,-460.0,0.00019178,2]
[379063894,1755112244906,-460.0,0.00019178,2]
[379063895,1755112244915,-1646.74,0.00019178,2]
[379063896,1755112244925,-460.0,0.00019178,2]
[379063897,1755112244935,-460.0,0.00019178,2]
[379063898,1755112244946,-460.0,0.00019178,2]
[379063899,1755112244957,-460.0,0.00019178,2]
[379063900,1755112244968,-460.0,0.00019178,2]
[379063901,1755112244978,-573.62,0.00019178,2]
[379063902,1755112244988,-1879.55,0.00019178,2]
[379063903,1755112244998,-460.0,0.00019178,2]
[379063904,1755112245007,-460.0,0.00019178,2]
[379063905,1755112245017,-1632.25,0.00019178,2]
[379063906,1755112245027,-460.0,0.00019178,2]
[379063907,1755112245036,-460.0,0.00019178,2]
[379063908,1755112245045,-795.75,0.00019178,2]
[379063909,1755112245055,-460.0,0.00019178,2]
[379063910,1755112245065,-460.0,0.00019178,2]
[379063911,1755112245074,-460.0,0.00019178,2]
[379063912,1755112245083,-200.0,0.00019178,10]
[379063913,1755112245093,-460.0,0.00019178,2]
[379063914,1755112245104,-3889.15,0.00019178,2]
[379063915,1755112245115,-460.0,0.00019178,2]
[379063916,1755112245125,-200.0,0.00019178,10]
[379063917,1755112245134,-200.0,0.00019178,10]
[379063918,1755112245144,-200.0,0.00019178,10]
[379063919,1755112245153,-200.0,0.00019178,10]
[379063920,1755112245163,-460.0,0.00019178,2]
[379063921,1755112245172,-200.0,0.00019178,10]
[379063922,1755112245182,-168.788403,0.00019178,10]
[379063923,1755112245194,-460.0,0.00019178,2]
[379063924,1755112245204,-460.0,0.00019178,2]
[379063925,1755112245228,-1027.75,0.00019178,2]
[379063926,1755112245238,-460.0,0.00019178,2]
[379063927,1755112245247,-460.0,0.00019178,2]
[379063928,1755112245256,-460.0,0.00019178,2]
[379063929,1755112245266,-460.0,0.00019178,2]
[379063930,1755112245276,-460.0,0.00019178,2]
[379063931,1755112245286,-2425.48,0.00019178,2]
[379063932,1755112245295,-1935.24,0.00019178,2]
[379063933,1755112245304,-460.0,0.00019178,2]
[379063934,1755112245314,-460.0,0.00019178,2]
[379063935,1755112245323,-1325.06,0.00019178,2]
[379063936,1755112245333,-460.0,0.00019178,2]
[379063937,1755112245343,-460.0,0.00019178,2]
[379063938,1755112245353,-654.19,0.00019178,2]
[379063939,1755112245362,-460.0,0.00019178,2]
[379063940,1755112245372,-460.0,0.00019178,2]
[379063941,1755112245381,-460.0,0.00019178,2]
[379063942,1755112245390,-460.0,0.00019178,2]
[379063943,1755112245400,-460.0,0.00019178,2]
[379063944,1755112245409,-460.0,0.00019178,2]
[379063945,1755112245419,-460.0,0.00019178,2]
[379063946,1755112245429,-1902.87,0.00019178,2]
[379063947,1755112245438,-460.0,0.00019178,2]
[379063948,1755112245449,-460.0,0.00019178,2]
[379063949,1755112245458,-475.43586001,0.00019178,2]
[379063950,1755112245468,-460.0,0.00019178,2]
[379063951,1755112245478,-460.0,0.00019178,2]
[379063952,1755112245489,-460.0,0.00019178,2]
[379063953,1755112245499,-460.0,0.00019178,2]
[379063954,1755112245508,-460.0,0.00019178,2]
[379063955,1755112245518,-601.85,0.00019178,2]
[379063956,1755112245528,-460.0,0.00019178,2]
[379063957,1755112245537,-1058.53,0.00019178,2]
[379063958,1755112245547,-460.0,0.00019178,2]
[379063959,1755112245557,-460.0,0.00019178,2]
[379063960,1755112245567,-460.0,0.00019178,2]
[379063961,1755112245577,-498.54,0.00019178,2]
[379063962,1755112245587,-460.0,0.00019178,2]
[379063963,1755112245596,-460.0,0.00019178,2]
[379063964,1755112245606,-1749.22,0.00019178,2]
[379063965,1755112245615,-460.0,0.00019178,2]
[379063966,1755112245626,-975.8,0.00019178,2]
[379063967,1755112245637,-460.0,0.00019178,2]
[379063968,1755112245647,-480.40445149,0.00019178,2]
[379063970,1755112245657,-460.0,0.00019178,2]
[379063971,1755112245666,-1789.12,0.00019178,2]
[379063972,1755112245676,-460.0,0.00019178,2]
[379063973,1755112245686,-601.68,0.00019178,2]
[379063974,1755112245696,-460.0,0.00019178,2]
[379063975,1755112245705,-460.0,0.00019178,2]
[379063976,1755112245715,-1663.02,0.00019178,2]
[379063977,1755112245724,-721.24,0.00019178,2]
[379063979,1755112245733,-460.0,0.00019178,2]
[379063980,1755112245742,-666.0,0.00019178,2]
[379063981,1755112245751,-200.0,0.00019222,20]
[379063982,1755112245760,-200.0,0.00019222,20]
[379063983,1755112245769,-200.0,0.00019222,20]
[379063984,1755112245778,-100000.0,0.00019329,2]
[379063985,1755112245788,-460.0,0.00019452,2]
[379063986,1755112245797,-460.0,0.00019452,2]
[379063987,1755112245807,-460.0,0.00019452,2]
[379063988,1755112245816,-200.30039571,0.00019452,2]
[379063989,1755112245825,-331.18271432,0.00019452,2]
[379063990,1755112245834,-460.0,0.00019452,2]
[379063991,1755112245843,-460.0,0.00019452,2]
[379063992,1755112245852,-460.0,0.00019452,2]
[379063993,1755112245862,-460.0,0.00019452,2]
[379063994,1755112245871,-460.0,0.00019452,2]
[379063995,1755112245879,-460.0,0.00019452,2]
[379063996,1755112245889,-460.0,0.00019452,2]
[379063997,1755112245899,-460.0,0.00019452,2]
[379063998,1755112245908,-470.25547687,0.00019452,2]
[379063999,1755112245918,-460.0,0.00019452,2]
[379064000,1755112245927,-460.0,0.00019452,2]
[379064001,1755112245937,-460.0,0.00019452,2]
[379064002,1755112245947,-460.0,0.00019452,2]
[379064003,1755112245957,-460.0,0.00019452,2]
[379064004,1755112245967,-460.0,0.00019452,2]
[379064005,1755112245976,-460.0,0.00019452,2]
[379064006,1755112245987,-460.0,0.00019452,2]
[379064007,1755112245997,-460.0,0.00019452,2]
[379064008,1755112246007,-460.0,0.00019452,2]
[379064009,1755112246017,-460.0,0.00019452,2]
[379064010,1755112246027,-468.78560395,0.00019452,2]
[379064011,1755112246037,-491.15,0.00019452,2]
[379064012,1755112246047,-460.0,0.00019452,2]
[379064013,1755112246057,-577.42,0.00019452,2]
[379064014,1755112246067,-460.0,0.00019452,2]
[379064015,1755112246077,-460.0,0.00019452,2]
[379064016,1755112246087,-630.9,0.00019452,2]
[379064017,1755112246098,-460.0,0.00019452,2]
[379064018,1755112246109,-460.0,0.00019452,2]
[379064019,1755112246119,-460.0,0.00019452,2]
[379064020,1755112246130,-460.0,0.00019452,2]
[379064021,1755112246139,-460.0,0.00019452,2]
[379064022,1755112246149,-460.0,0.00019452,2]
[379064023,1755112246159,-460.0,0.00019452,2]
[379064024,1755112246170,-460.0,0.00019452,2]
[379064025,1755112246180,-460.0,0.00019452,2]
[379064026,1755112246191,-460.0,0.00019452,2]
[379064027,1755112246202,-460.0,0.00019452,2]
[379064028,1755112246226,-460.0,0.00019452,2]
[379064029,1755112246237,-460.0,0.00019452,2]
[379064030,1755112246246,-460.0,0.00019452,2]
[379064031,1755112246256,-460.0,0.00019452,2]
[379064032,1755112246266,-460.0,0.00019452,2]
[379064033,1755112246275,-460.0,0.00019452,2]
[379064034,1755112246285,-460.0,0.00019452,2]
[379064035,1755112246295,-460.0,0.00019452,2]
[379064036,1755112246305,-460.0,0.00019452,2]
[379064037,1755112246315,-460.0,0.00019452,2]
[379064038,1755112246324,-460.0,0.00019452,2]
[379064039,1755112246334,-460.0,0.00019452,2]
[379064040,1755112246344,-460.0,0.00019452,2]
[379064041,1755112246354,-460.0,0.00019452,2]
[379064042,1755112246364,-460.0,0.00019452,2]
[379064043,1755112246374,-460.0,0.00019452,2]
[379064044,1755112246384,-460.0,0.00019452,2]
[379064045,1755112246393,-460.0,0.00019452,2]
[379064046,1755112246403,-545.50796476,0.00019452,2]
[379064047,1755112246413,-595.56,0.00019452,2]
[379064048,1755112246423,-1192.07,0.00019452,2]
[379064049,1755112246433,-460.0,0.00019452,2]
[379064050,1755112246444,-465.44377966,0.00019452,2]
[379064051,1755112246454,-460.0,0.00019452,2]
[379064052,1755112246464,-460.0,0.00019452,2]
[379064053,1755112246474,-460.0,0.00019452,2]
[379064054,1755112246483,-269.31868935,0.00019452,2]
[379064055,1755112246492,-460.0,0.00019452,2]
[379064056,1755112246502,-460.0,0.00019452,2]
[379064057,1755112246511,-460.0,0.00019452,2]
[379064058,1755112246521,-508.41,0.00019452,2]
[379064059,1755112246531,-460.0,0.00019452,2]
[379064060,1755112246541,-460.0,0.00019452,2]
[379064061,1755112246550,-460.0,0.00019452,2]
[379064062,1755112246559,-1521.53,0.00019452,2]
[379064063,1755112246568,-877.83,0.00019452,2]
[379064064,1755112246578,-460.0,0.00019452,2]
[379064065,1755112246587,-499.59,0.00019452,2]
[379064066,1755112246597,-814.41,0.00019452,2]
[379064067,1755112246607,-460.0,0.00019452,2]
[379064068,1755112246616,-460.0,0.00019452,2]
[379064069,1755112246626,-460.0,0.00019452,2]
[379064070,1755112246637,-460.0,0.00019452,2]
[379064071,1755112246647,-198.12858772,0.00019452,2]
[379064072,1755112246657,-460.0,0.00019452,2]
[379064073,1755112246666,-500.0,0.00019452,2]
[379064074,1755112246676,-460.0,0.00019452,2]
[379064075,1755112246685,-984.07,0.00019452,2]
[379064076,1755112246695,-460.0,0.00019452,2]
[379064077,1755112246705,-460.0,0.00019452,2]
[379064078,1755112246715,-487.97549215,0.00019452,2]
[379064079,1755112246724,-411.21365427,0.00019452,2]
[379064080,1755112246733,-460.0,0.00019452,2]
[379064081,1755112246743,-460.0,0.00019452,2]
[379064082,1755112246752,-460.0,0.00019452,2]
[379064083,1755112246762,-460.0,0.00019452,2]
[379064084,1755112246771,-984.43,0.00019452,2]
[379064085,1755112246781,-1471.49,0.00019452,2]
[379064086,1755112246790,-460.0,0.00019452,2]
[379064087,1755112246800,-460.0,0.00019452,2]
[379064088,1755112246810,-460.0,0.00019452,2]
[379064089,1755112246819,-1239.32,0.00019452,2]
[379064090,1755112246829,-460.0,0.00019452,2]
[379064091,1755112246839,-460.0,0.00019452,2]
[379064092,1755112246849,-460.0,0.00019452,2]
[379064093,1755112246859,-1419.18,0.00019452,2]
[379064094,1755112246870,-705.7,0.00019452,2]
[379064095,1755112246880,-460.0,0.00019452,2]
[379064096,1755112246890,-460.0,0.00019452,2]
[379064097,1755112246900,-1289.48,0.00019452,2]
[379064098,1755112246910,-460.0,0.00019452,2]
[379064099,1755112246920,-460.0,0.00019452,2]
[379064100,1755112246930,-460.0,0.00019452,2]
[379064101,1755112246940,-588.47,0.00019452,2]
[379064102,1755112246952,-977.14,0.00019452,2]
[379064103,1755112246961,-460.0,0.00019452,2]
[379064104,1755112246971,-460.0,0.00019452,2]
[379064105,1755112246982,-460.0,0.00019452,2]
[379064106,1755112246992,-460.0,0.00019452,2]
[379064107,1755112247001,-649.5,0.00019452,2]
[379064108,1755112247012,-549.68,0.00019452,2]
[379064109,1755112247022,-732.27,0.00019452,2]
[379064110,1755112247040,-460.0,0.00019452,2]
[379064111,1755112247052,-460.0,0.00019452,2]
[379064112,1755112247063,-460.0,0.00019452,2]
[379064113,1755112247075,-548.95,0.00019452,2]
[379064114,1755112247086,-460.0,0.00019452,2]
[379064115,1755112247096,-460.0,0.00019452,2]
[379064116,1755112247106,-460.0,0.00019452,2]
[379064117,1755112247117,-460.0,0.00019452,2]
[379064118,1755112247129,-1737.8,0.00019452,2]
[379064119,1755112247139,-460.0,0.00019452,2]
[379064120,1755112247149,-460.0,0.00019452,2]
[379064121,1755112247159,-460.0,0.00019452,2]
[379064122,1755112247168,-460.0,0.00019452,2]
[379064123,1755112247178,-460.0,0.00019452,2]
[379064124,1755112247188,-954.21,0.00019452,2]
[379064125,1755112247200,-460.0,0.00019452,2]
[379064126,1755112247211,-460.0,0.00019452,2]
[379064127,1755112247220,-460.0,0.00019452,2]
[379064128,1755112247231,-661.52,0.00019452,2]
[379064129,1755112247242,-460.0,0.00019452,2]
[379064130,1755112247252,-460.0,0.00019452,2]
[379064131,1755112247262,-460.0,0.00019452,2]
[379064132,1755112247272,-460.0,0.00019452,2]
[379064133,1755112247282,-460.0,0.00019452,2]
[379064134,1755112247292,-379.82388907,0.00019452,2]
[379064135,1755112247303,-460.0,0.00019452,2]
[379064136,1755112247312,-460.0,0.00019452,2]
[379064137,1755112247322,-817.84,0.00019452,2]
[379064138,1755112247332,-460.0,0.00019452,2]
[379064139,1755112247342,-193.12740943,0.00019452,2]
[379064140,1755112247353,-460.0,0.00019452,2]
[379064142,1755112247364,-460.0,0.00019452,2]
[379064144,1755112247375,-228.46459569,0.00019452,2]
[379064145,1755112247386,-460.0,0.00019452,2]
[379064146,1755112247397,-460.0,0.00019452,2]
[379064147,1755112247408,-460.0,0.00019452,2]
[379064148,1755112247418,-460.0,0.00019452,2]
[379064149,1755112247428,-539.72,0.00019452,2]
[379064150,1755112247438,-894.44,0.00019452,2]
[379064151,1755112247448,-256.87114949,0.00019452,2]
[379064152,1755112247462,-460.0,0.00019452,2]
[379064153,1755112247472,-460.0,0.00019452,2]
[379064155,1755112247482,-460.0,0.00019452,2]
[379064156,1755112247492,-460.0,0.00019452,2]
[379064158,1755112247503,-460.0,0.00019452,2]
[379064160,1755112247515,-460.0,0.00019452,2]
[379064161,1755112247524,-726.71,0.00019452,2]
[379064162,1755112247535,-462.57068005,0.00019452,2]
[379064163,1755112247544,-460.0,0.00019452,2]
[379064165,1755112247555,-460.0,0.00019452,2]
[379064167,1755112247565,-460.0,0.00019452,2]
[379064169,1755112247576,-460.0,0.00019452,2]
[379064170,1755112247586,-460.0,0.00019452,2]
[379064171,1755112247596,-460.0,0.00019452,2]
[379064172,1755112247605,-460.0,0.00019452,2]
[379064173,1755112247616,-460.0,0.00019452,2]
[379064174,1755112247625,-610.59,0.00019452,2]
[379064175,1755112247636,-460.0,0.00019452,2]
[379064176,1755112247647,-560.11,0.00019452,2]
[379064177,1755112247657,-460.0,0.00019452,2]
[379064178,1755112247667,-460.0,0.00019452,2]
[379064179,1755112247678,-403.52,0.00019452,2]
[379064180,1755112247687,-2656.48,0.00019452,2]
[379064181,1755112247698,-464.88,0.00019452,2]
[379064182,1755112247707,-460.0,0.00019452,2]
[379064183,1755112247717,-460.0,0.00019452,2]
[379064184,1755112247730,-460.0,0.00019452,2]
[379064185,1755112247741,-460.0,0.00019452,2]
[379064186,1755112247750,-460.0,0.00019452,2]
[379064187,1755112247760,-683.27,0.00019452,2]
[379064188,1755112247770,-797.72,0.00019452,2]
[379064189,1755112247780,-460.0,0.00019452,2]
[379064190,1755112247790,-460.0,0.00019452,2]
[379064191,1755112247800,-460.0,0.00019452,2]
[379064192,1755112247810,-460.0,0.00019452,2]
[379064193,1755112247821,-460.0,0.00019452,2]
[379064194,1755112247830,-476.06450782,0.00019452,2]
[379064195,1755112247840,-604.18,0.00019452,2]
[379064196,1755112247851,-460.0,0.00019452,2]
[379064197,1755112247862,-475.94,0.00019452,2]
[379064198,1755112247872,-460.0,0.00019452,2]
[379064199,1755112247882,-460.0,0.00019452,2]
[379064200,1755112247892,-460.0,0.00019452,2]
[379064201,1755112247904,-460.0,0.00019452,2]
[379064202,1755112247914,-460.0,0.00019452,2]
[379064203,1755112247924,-839.34,0.00019452,2]
[379064204,1755112247934,-460.0,0.00019452,2]
[379064205,1755112247944,-460.0,0.00019452,2]
[379064206,1755112247954,-460.0,0.00019452,2]
[379064207,1755112247964,-731.73,0.00019452,2]
[379064208,1755112247974,-460.0,0.00019452,2]
[379064209,1755112247984,-460.0,0.00019452,2]
[379064210,1755112247994,-460.0,0.00019452,2]
[379064211,1755112248003,-460.0,0.00019452,2]
[379064212,1755112248014,-460.0,0.00019452,2]
[379064213,1755112248024,-283.16942035,0.00019452,2]
[379064214,1755112248034,-460.0,0.00019452,2]
[379064215,1755112248044,-460.0,0.00019452,2]
[379064216,1755112248054,-460.0,0.00019452,2]
[379064217,1755112248065,-1296.92,0.00019452,2]
[379064218,1755112248074,-460.0,0.00019452,2]
[379064219,1755112248085,-460.0,0.00019452,2]
[379064220,1755112248095,-460.0,0.00019452,2]
[379064221,1755112248105,-525.91,0.00019452,2]
[379064222,1755112248115,-460.0,0.00019452,2]
[379064223,1755112248128,-2321.42,0.00019452,2]
[379064224,1755112248139,-1019.53,0.00019452,2]
[379064225,1755112248149,-460.0,0.00019452,2]
[379064226,1755112248159,-460.0,0.00019452,2]
[379064227,1755112248171,-460.0,0.00019452,2]
[379064228,1755112248181,-460.0,0.00019452,2]
[379064229,1755112248192,-839.99,0.00019452,2]
[379064230,1755112248203,-516.19,0.00019452,2]
[379064231,1755112248214,-751.64,0.00019452,2]
[379064232,1755112248224,-6346.14,0.00019452,2]
[379064233,1755112248237,-460.0,0.00019452,2]
[379064234,1755112248248,-460.0,0.00019452,2]
[379064235,1755112248448,-280.0,0.00019452,2]
[379064236,1755112248498,-1948.58,0.00019452,2]
[379064237,1755112248508,-1204.3,0.00019452,2]
[379064238,1755112248518,-460.0,0.00019452,2]
[379064239,1755112248527,-2168.24,0.00019452,2]
[379064240,1755112248537,-460.0,0.00019452,2]
[379064241,1755112248547,-460.0,0.00019452,2]
[379064242,1755112248557,-460.0,0.00019452,2]
[379064243,1755112248566,-460.0,0.00019452,2]
[379064244,1755112248576,-460.0,0.00019452,2]
[379064245,1755112248585,-460.0,0.00019452,2]
[379064246,1755112248597,-460.0,0.00019452,2]
[379064247,1755112248607,-460.0,0.00019452,2]
[379064248,1755112248617,-460.0,0.00019452,2]
[379064249,1755112248626,-1245.83,0.00019452,2]
[379064250,1755112248636,-460.0,0.00019452,2]
[379064251,1755112248648,-651.64,0.00019452,2]
[379064252,1755112248657,-840.79,0.00019452,2]
[379064253,1755112248668,-460.0,0.00019452,2]
[379064254,1755112248678,-460.0,0.00019452,2]
[379064255,1755112248688,-791.23,0.00019452,2]
[379064256,1755112248698,-460.0,0.00019452,2]
[379064257,1755112248708,-460.0,0.00019452,2]
[379064258,1755112248718,-460.0,0.00019452,2]
[379064259,1755112248728,-699.69,0.00019452,2]
[379064260,1755112248738,-460.0,0.00019452,2]
[379064261,1755112248748,-460.0,0.00019452,2]
[379064262,1755112248758,-534.48078401,0.00019452,2]
[379064263,1755112248767,-460.0,0.00019452,2]
[379064264,1755112248777,-460.0,0.00019452,2]
[379064265,1755112248787,-1808.41,0.00019452,2]
[379064266,1755112248796,-460.0,0.00019452,2]
[379064267,1755112248806,-460.0,0.00019452,2]
[379064268,1755112248816,-3777.68,0.00019452,2]
[379064269,1755112248826,-460.0,0.00019452,2]
[379064270,1755112248836,-460.0,0.00019452,2]
[379064271,1755112248846,-460.0,0.00019452,2]
[379064272,1755112248856,-460.0,0.00019452,2]
[379064273,1755112248867,-668.7,0.00019452,2]
[379064274,1755112248877,-908.74,0.00019452,2]
[379064275,1755112248887,-460.0,0.00019452,2]
[379064276,1755112248896,-460.0,0.00019452,2]
[379064277,1755112248906,-460.0,0.00019452,2]
[379064278,1755112248916,-217.42352593,0.00019452,2]
[379064279,1755112248927,-460.0,0.00019452,2]
[379064280,1755112248937,-460.0,0.00019452,2]
[379064281,1755112248948,-460.0,0.00019452,2]
[379064282,1755112248958,-460.0,0.00019452,2]
[379064283,1755112248968,-460.0,0.00019452,2]
[379064284,1755112248978,-537.7,0.00019452,2]
[379064285,1755112248988,-460.0,0.00019452,2]
[379064286,1755112248997,-460.0,0.00019452,2]
[379064287,1755112249007,-460.0,0.00019452,2]
[379064288,1755112249016,-460.0,0.00019452,2]
[379064289,1755112249026,-460.0,0.00019452,2]
[379064290,1755112249036,-460.0,0.00019452,2]
[379064291,1755112249045,-460.0,0.00019452,2]
[379064292,1755112249055,-460.0,0.00019452,2]
[379064293,1755112249064,-706.91,0.00019452,2]
[379064294,1755112249073,-567.77,0.00019452,2]
[379064295,1755112249083,-460.0,0.00019452,2]
[379064296,1755112249092,-504.02,0.00019452,2]
[379064297,1755112249101,-372.60056369,0.00019452,2]
[379064298,1755112249111,-1000.0,0.00019452,2]
[379064299,1755112249123,-460.0,0.00019452,2]
[379064300,1755112249133,-460.0,0.00019452,2]
[379064301,1755112249143,-492.54,0.00019452,2]
[379064302,1755112249153,-460.0,0.00019452,2]
[379064303,1755112249163,-857.53,0.00019452,2]
[379064304,1755112249172,-460.0,0.00019452,2]
[379064305,1755112249182,-460.0,0.00019452,2]
[379064306,1755112249191,-621.45,0.00019452,2]
[379064307,1755112249203,-460.0,0.00019452,2]
[379064308,1755112249214,-460.0,0.00019452,2]
[379064309,1755112249223,-993.26,0.00019452,2]
[379064310,1755112249232,-460.0,0.00019452,2]
[379064311,1755112249244,-460.0,0.00019452,2]
[379064312,1755112249253,-460.0,0.00019452,2]
[379064313,1755112249263,-460.0,0.00019452,2]
[379064314,1755112249272,-460.0,0.00019452,2]
[379064315,1755112249282,-631.82,0.00019452,2]
[379064316,1755112249292,-1450.23,0.00019452,2]
[379064317,1755112249301,-758.58,0.00019452,2]
[379064318,1755112249311,-460.0,0.00019452,2]
[379064319,1755112249320,-540.21,0.00019452,2]
[379064320,1755112249330,-460.0,0.00019452,2]
[379064321,1755112249339,-478.03,0.00019452,2]
[379064322,1755112249348,-460.0,0.00019452,2]
[379064323,1755112249357,-460.0,0.00019452,2]
[379064324,1755112249367,-460.0,0.00019452,2]
[379064325,1755112249377,-460.0,0.00019452,2]
[379064326,1755112249386,-460.0,0.00019452,2]
[379064327,1755112249395,-667.42,0.00019452,2]
[379064328,1755112249405,-512.05,0.00019452,2]
[379064329,1755112249414,-519.14,0.00019452,2]
[379064330,1755112249423,-460.0,0.00019452,2]
[379064331,1755112249433,-460.0,0.00019452,2]
[379064332,1755112249442,-460.0,0.00019452,2]
[379064333,1755112249452,-679.1,0.00019452,2]
[379064334,1755112249461,-1433.16,0.00019452,2]
[379064335,1755112249472,-1322.3,0.00019452,2]
[379064336,1755112249481,-460.0,0.00019452,2]
[379064337,1755112249492,-3263.4,0.00019452,2]
[379064338,1755112249501,-488.5,0.00019452,2]
[379064339,1755112249511,-460.0,0.00019452,2]
[379064340,1755112249520,-460.0,0.00019452,2]
[379064341,1755112249530,-460.0,0.00019452,2]
[379064342,1755112249539,-460.0,0.00019452,2]
[379064343,1755112249549,-465.83713181,0.00019452,2]
[379064344,1755112249558,-460.0,0.00019452,2]
[379064345,1755112249567,-460.0,0.00019452,2]
[379064346,1755112249576,-1889.47,0.00019452,2]
[379064347,1755112249586,-460.0,0.00019452,2]
[379064348,1755112249595,-460.0,0.00019452,2]
[379064349,1755112249604,-460.0,0.00019452,2]
[379064350,1755112249614,-1003.25,0.00019452,2]
[379064351,1755112249624,-460.0,0.00019452,2]
[379064352,1755112249633,-460.0,0.00019452,2]
[379064353,1755112249644,-460.0,0.00019452,2]
[379064354,1755112249655,-660.48,0.00019452,2]
[379064355,1755112249664,-460.0,0.00019452,2]
[379064356,1755112249673,-940.35,0.00019452,2]
[379064357,1755112249682,-460.0,0.00019452,2]
[379064358,1755112249692,-460.0,0.00019452,2]
[379064359,1755112249702,-460.0,0.00019452,2]